{"text_format":"1","workbook":"xlsx","n_sheets":2,"sheets":["Bila_D","Bilanzanalyse"],"not_rendered":{"charts":0,"images":0,"macros":0,"external_links":0,"defined_names":1,"comments":0,"pivot_tables":0},"unopened":[],"bounds":{"document_bytes":16777216,"sheet_cells":100000,"rows_first":2000,"rows_last":500,"rows_between":2000,"halvings":0,"cell_chars":16384,"cell_head_chars":4096},"cells_cut":0,"cells_raw":0,"read":"whole","date_system":"1900"}

{"sheet":"Bila_D","index":0,"n_rows":59,"n_cols":9,"rows_kept":59,"cut":false,"hidden":false,"merged":[]}
[]
[null,"Konzern-Bilanz (IFRS)"]
[null,"zum 31. März 2017"]
[null,null,"2017-03-31","2016-09-30",null,null,null,"Y/Y in %","Y/Y absolut"]
[null,null,"Tsd. €","Tsd. €",null,null,null,"in %","Tsd. €"]
[null,"AKTIVA"]
[null,"Langfristige Vermögenswerte"]
[null,"Geschäfts- oder Firmenwert",166395,164578,null,null,null,{"$f":"+C8/D8-1","v":1.1040357763492104E-2},{"$f":"+C8-D8","v":1817}]
[null,"Sonstige immaterielle Vermögenswerte",58511,53746,null,null,null,{"$f":"+C9/D9-1","v":8.8657760577531386E-2},{"$f":"+C9-D9","v":4765}]
[null,"Sachanlagen",64517,64509,null,null,null,1.2401370351433627E-4,8]
[null,"Sonstige Ausleihungen",141,2348,null,null,null,-0.93994889267461668,-2207]
[null,"Anteile an verbundenen nicht-konsolidierten Unternehmen",18941,0,null,null,null,{"$f":"+C12/D12-1","v":{"$error":"#DIV/0!"}},{"$f":"+C12-D12","v":18941}]
[null,"Beteiligungen",124,124,null,null,null,0,0]
[null,"Latente Ertragsteuern",83250,89621,null,null,null,-7.108824940583125E-2,-6371]
[null,"Langfristige Forderungen aus Lieferungen und Leistungen",13327,11097,null,null,null,0.20095521312066333,2230]
[null,"Sonstige langfristige Vermögenswerte",4119,2874,null,null,null,0.43319415448851784,1245]
[null,null,{"$f":"+SUM(C8:C16)","v":409325},388897,null,null,null,5.2528047272156986E-2,20428]
[null,"Kurzfristige Vermögenswerte"]
[null,"Vorräte",229412,208309,null,null,null,{"$f":"+C19/D19-1","v":0.10130623256796389},{"$f":"+C19-D19","v":21103}]
[null,"Forderungen aus Lieferungen und Leistungen",180896,189244,null,null,null,-4.411236287544118E-2,-8348]
[null,"Forderungen aus Lieferungen und Leistungen gegen nahe stehende Unternehmen",91698,60216,null,null,null,0.52281785571941009,31482]
[null,"Forderungen aus Finanzausgleich",672384,354528,null,null,null,0.89656106146764158,317856]
[null,"Steuererstattungsansprüche",1394,5816,null,null,null,-0.76031636863823937,-4422]
[null,"Sonstige kurzfristige finanzielle Vermögenswerte",6970,9962,null,null,null,-0.30034129692832767,-2992]
[null,"Sonstige kurzfristige nicht-finanzielle Vermögenswerte",21518,20678,null,null,null,4.0622884224779998E-2,840]
[null,"Zahlungsmittel und Zahlungsmitteläquivalente",9308,8710,null,null,null,6.8656716417910379E-2,598]
[null,null,{"$f":"+SUM(C19:C26)","v":1213580},857463,null,null,null,0.41531471328792025,356117]
[null,"Zur Veräußerung gehaltene Vermögenswerte",0,1370,null,null,null,{"$f":"+C28/D28-1","v":-1},{"$f":"+C28-D28","v":-1370}]
[null,null,{"$f":"+C27+C17+C28","v":1622905},1247730,null,null,null,0.30068604585928038,375175]
[null,"PASSIVA"]
[null,"Eigenkapital"]
[null,"Gezeichnetes Kapital",89441,81310,null,null,null,{"$f":"+C32/D32-1","v":0.10000000000000009},{"$f":"+C32-D32","v":8131}]
[null,"Kapitalrücklage",620137,313863,null,null,null,{"$f":"+C33/D33-1","v":0.97582066060669792},306274]
[null,"Gewinnrücklagen",520073,458335,null,null,null,0.13470060108872328,61738]
[null,"Sonstige Bestandteile des Eigenkapitals",-31081,-55671,null,null,null,-0.4417021429469562,24590]
[null,"Eigenkapital ohne Anteile nicht-beherrschender Gesellschafter",{"$f":"+SUM(C32:C35)","v":1198570},797837,null,null,null,0.50227427406851266,400733]
[null,"Ausgleichsposten für Anteile nicht-beherrschender Gesellschafter",52584,53326,null,null,null,-1.3914413231819411E-2,-742]
[null,null,{"$f":"+C36+C37","v":1251154},851163,null,null,null,0.46993466586306032,399991]
[null,"Langfristige Schulden"]
[null,"Pensionsrückstellungen und ähnliche Verpflichtungen",55644,81134,null,null,null,{"$f":"+C40/D40-1","v":-0.31417161732442622},{"$f":"+C40-D40","v":-25490}]
[null,"Andere langfristige Rückstellungen",5876,5380,null,null,null,9.2193308550185815E-2,496]
[null,"Langfristige finanzielle Verbindlichkeiten",766,1610,null,null,null,-0.52422360248447197,-844]
[null,"Langfristige Leasingverbindlichkeiten",4848,6126,null,null,null,-0.20861900097943198,-1278]
[null,"Sonstige langfristige nicht-finanzielle Verbindlichkeiten",5936,6023,null,null,null,-1.4444628922463898E-2,-87]
[null,"Latente Ertragsteuern",10344,10397,null,null,null,-5.0976243147061728E-3,-53]
[null,null,{"$f":"+SUM(C40:C45)","v":83414},110670,null,null,null,-0.24628173850185231,-27256]
[null,"Kurzfristige Schulden"]
[null,"Kurzfristige Rückstellungen",23812,22691,null,null,null,{"$f":"+C48/D48-1","v":4.9402846943722212E-2},{"$f":"+C48-D48","v":1121}]
[null,"Kurzfristige abgegrenzte Verbindlichkeiten",70037,71168,null,null,null,-1.5891973920863278E-2,-1131]
[null,"Kurzfristige finanzielle Verbindlichkeiten",17175,22720,null,null,null,-0.24405809859154926,-5545]
[null,"Kurzfristiger Anteil langfristiger Leasingverbindlichkeiten",3032,2854,null,null,null,6.2368605466012639E-2,178]
[null,"Verbindlichkeiten aus Lieferungen und Leistungen",55157,57105,null,null,null,-3.4112599597233118E-2,-1948]
[null,"Kurzfristige Verbindlichkeiten aus Ertragsteuern",11929,15863,null,null,null,-0.24799848704532557,-3934]
[null,"Verbindlichkeiten aus Lieferungen und Leistungen gegenüber nahe stehenden Unternehmen",30958,29426,null,null,null,5.2062801604023656E-2,1532]
[null,"Verbindlichkeiten aus Finanzausgleich",44135,28656,null,null,null,0.54016610831937473,15479]
[null,"Sonstige kurzfristige nicht-finanzielle Verbindlichkeiten",32102,35414,null,null,null,-9.352233579940139E-2,-3312]
[null,null,{"$f":"+SUM(C48:C56)","v":288337},285897,null,null,null,8.534542160288483E-3,2440]
[null,null,{"$f":"+C38+C46+C57","v":1622905},1247730,null,null,null,0.30068604585928038,375175]
[null,"Der nachfolgende Konzernanhang ist integraler Bestandteil des ungeprüften Konzernabschlusses."]

{"sheet":"Bilanzanalyse","index":1,"n_rows":14,"n_cols":5,"rows_kept":14,"cut":false,"hidden":true,"merged":[[0,0,0,1]]}
["Abw. Dec./ Sep",null,"Begründung","davon\n erklärt","Differenz"]
[{"$f":"#REF!","v":{"$error":"#REF!"}},"Geschäfts- oder Firmenwert","Zugang IMEX 7,432 Mio.",{"$f":"7432","v":7432},{"$f":"A2-D2","v":{"$error":"#REF!"}}]
[{"$f":"#REF!","v":{"$error":"#REF!"}},"Immaterielle Vermögenswerte","Zugang IMEX 5,551 Mio."]
[{"$f":"#REF!","v":{"$error":"#REF!"}},"Sachanlagen","Zugang CZM AG 4,0 Mio. vor Afa (hauptsächlich Olymp ca. 3,2 Mio.); Übernahme Mietgeräte bei CZM VG aus Umlaufvermögen (+1,2 Mio.)"]
[{"$f":"#REF!","v":{"$error":"#REF!"}},"Forderungen aus Lieferungen und Leistungen","hierin enthalten 2,9 Mio. Alcon-Lizenzen, Cash-Zahlung erfolgt erst im Januar"]
[{"$f":"#REF!","v":{"$error":"#REF!"}},"Forderungen gegen nahe stehende Unternehmen","v.a. Umsatzanstieg Q1 CZM AG (Umsatz je Quartal: GJ 10/11 --> 113 Mio., Q1 11/12 --> 141 Mio.)  "]
[{"$f":"#REF!","v":{"$error":"#REF!"}},"Sonstige kurzfristige finanzielle Vermögenswerte","Anstieg aus CZM Inc. aufgrund der Umgliederung der Kreditkartenforderungen von kurzf. Nicht-finanz. Vw in kurzf. Finanz. Vermögenswerte (+1,3 Mio.). Anstieg CZM AG (+0,3 Mio.) für Zinsabgrenzungen (COBA + HVB)",{"$f":"1300+300","v":1600},{"$f":"A7-D7","v":{"$error":"#REF!"}}]
[{"$f":"#REF!","v":{"$error":"#REF!"}},"Sonstige kurzfristige nicht-finanzielle Vermögenswerte","Kompensation des Umgliederungseffektes USA durch CZM F (+0,6 Mio., u.a. UST, ARAP), CZM AG (+0,4 Mio.) "]
[1207,"Andere langfristige Rückstellungen","IMEX earn out Anteil +2,218 Mio.; Kompensation durch CZM AG (-915 TEUR ATZ, -142 TEUR Verbrauch ERA RST und sonstiges)",{"$f":"(2.218-0.915-0.142)*1000","v":1161},46]
[{"$f":"#REF!","v":{"$error":"#REF!"}},"Kurzfristige Rückstellungen","IMEX earn out Anteil +2,149 Mio., Abgrenzung KöSteuer +1,5 Mio. (CZM AG), RST für Gewährleistungen pauschal +0,55 Mio. (CZM AG), Konzernrückstellung Q1 für Projekttehmen +0,85 Mio., Auflösung RST für Bonuszahlung im Dezember + RST-Bildung für geschätzte Logistikosten (CZM Japan), Zuführung RST CZM Inc. für Ferien, Warenrückgabe und Gewährleistung",{"$f":"(2.149+1.5+0.55+0.85)*1000","v":5048.9999999999991},{"$error":"#REF!"}]
[{"$f":"#REF!","v":{"$error":"#REF!"}},"Kurzfristige abgegrenzte Verbindlichkeiten","Auszahlung Renumeration für FY 10/11 CZM VG -0,8 Mio. (hier auch Reduzierung RST für ausstehende Rechnung enthalten) und USA -3,1 Mio. (u.a. MBO-Bonus, Super-Bonus); z.T. Kompensation/ Anstieg durch unterjährige Rechnungsabgrenzungen + Risiken CZM AG +1,36 Mio. (davon 0,6 Mio. Konzern-RST bzw. 0,3 Mio. CZM-Verbundene, die im Konzern wieder eliminiert werden); CZM SAS + FCI -04 Mio. Rückgang Personalverbindlichkeiten aufgrund erfolgter Bonuszahlung im Dez 11",{"$f":"(-0.8-3.1+1.36-0.3-0.4)*1000","v":-3239.9999999999995},{"$error":"#REF!"}]
[{"$f":"#REF!","v":{"$error":"#REF!"}},"Kurzfristige finanzielle Verbindlichkeiten","Devisentermingeschäfte CZM AG +3,3 Mio. EUR, Reduzierung ausstehende Checks USA aufgrund von Lieferantenzahlungen -0,6 Mio.",{"$f":"(3.3-0.6)*1000","v":2699.9999999999995},{"$error":"#REF!"}]
[{"$f":"#REF!","v":{"$error":"#REF!"}},"Verbindlichkeiten aus Lieferungen und Leistungen","CZM AG: Umstellung Lieferantenzahlungen auf tägliche Zahlungen nach Fälligkeit ab Q1 2012 (-3,9 Mio.)"]
[{"$f":"#REF!","v":{"$error":"#REF!"}},"Sonstige kurzfristige nicht-finanzielle Verbindlichkeiten","CZM AG: Lohnsteuerverbindlichkeiten +2,0 Mio. (Prämienzahlung 31.12.) , Lizenzen Alcon +2,2 Mio. Erhaltene Anzahlungen -1,0 Mio.,\nCZM VG: Erhöhung \"erhaltene Anzahlungen\" und Lohnsteuerverbindlichkeiten zum 31.12. (+0,6 Mio.)\nCZM Inc: Service-RST (+0,5 Mio.), abgegrenzter Service-Ertrag (+0,4 Mio.)\nCZM Japan: Bonuszahlung Dez 11 (+0,4 Mio.), Kundenvorauszahlungen OPMI Lumera + Vario (+0,5 Mio.), U-Anteil soziale Sicherheit (+0,2 Mio.)\nCZM Spanien: abgegrenter Ertrag (+0,3 Mio.) ",{"$f":"(2+2.2-1+0.6+0.5+0.4+0.4+0.5+0.2+0.3)*1000","v":6100.0000000000018},{"$error":"#REF!"}]